bitfinex/quotes_BTCUSD_20250308
["timestamp","ask_amount","ask_price","bid_price","bid_amount"]
[1741475435624,1.546069,86626.0,86625.0,0.0003396]
[1741475435763,1.56060985,86626.0,86625.0,0.0003396]
[1741475439821,0.011546,86603.0,86602.0,0.1235]
[1741475440024,0.150119,86597.0,86596.0,0.0779398]
[1741475440398,0.150109,86603.0,86596.0,0.0779398]
[1741475440645,0.138561,86605.0,86596.0,0.0779398]
[1741475440888,0.01763422,86605.0,86600.0,0.011547]
[1741475441096,0.011546,86604.0,86598.0,0.011547]
[1741475441625,0.150109,86603.0,86598.0,0.011547]
[1741475442129,0.011547,86600.0,86596.0,0.0779398]
[1741475442336,0.011547,86597.0,86596.0,0.0779398]
[1741475443363,0.011547,86602.0,86596.0,0.0779398]
[1741475443573,0.011547,86602.0,86597.0,0.150119]
[1741475443865,0.138568,86600.0,86596.0,0.0779398]
[1741475444097,0.150115,86600.0,86596.0,0.0779398]
[1741475448253,0.150115,86600.0,86596.0,0.07805581]
[1741475450893,0.011547,86601.0,86596.0,0.08960281]
[1741475451120,0.150115,86600.0,86596.0,0.07805581]
[1741475451320,0.150115,86600.0,86597.0,0.0107651]
[1741475451571,0.150115,86600.0,86596.0,0.07805581]
[1741475451771,0.150115,86600.0,86598.0,0.01076349]
[1741475451970,0.150118,86599.0,86596.0,0.07805581]
[1741475452215,0.150119,86597.0,86596.0,0.07805581]
[1741475452421,0.150119,86597.0,86596.0,0.00045581]
[1741475461663,0.150119,86598.0,86596.0,0.00045581]
[1741475461868,0.011547,86601.0,86596.0,0.00045581]
[1741475462076,0.011547,86600.0,86596.0,0.00045581]
[1741475462546,0.011547,86600.0,86597.0,0.01076714]
[1741475462747,0.011547,86600.0,86596.0,0.00045581]
[1741475462980,0.011547,86600.0,86597.0,0.01076714]
[1741475463190,0.011547,86600.0,86596.0,0.00045581]
[1741475463191,1.016,86602.0,86599.0,0.138569]
[1741475463366,1.016,86602.0,86598.0,0.02231252]
[1741475463764,1.016,86602.0,86598.0,0.01076552]
[1741475463959,0.150113,86601.0,86598.0,0.01076552]
[1741475464237,0.150113,86601.0,86596.0,0.00045581]
[1741475464371,1.016,86602.0,86599.0,0.0107639]
[1741475464571,1.016,86602.0,86597.0,0.150119]
[1741475464778,1.027547,86602.0,86600.0,0.01076229]
[1741475464983,1.016,86602.0,86601.0,0.0816]
[1741475465185,1.016,86602.0,86601.0,0.09236067]
[1741475467700,1.016,86602.0,86601.0,0.24247367]
[1741475467888,1.016,86602.0,86601.0,0.09236067]
[1741475468647,0.150111,86602.0,86601.0,0.09236067]
[1741475469081,0.150111,86602.0,86601.0,0.0816]
[1741475471034,0.01770431,86605.0,86601.0,0.0816]
[1741475471240,0.13856,86606.0,86601.0,0.0816]
[1741475471661,0.011546,86607.0,86601.0,0.093147]
[1741475472119,0.138558,86606.0,86601.0,0.093147]
[1741475472334,0.10380111,86610.0,86602.0,0.01075905]
[1741475472335,0.11534711,86610.0,86602.0,0.01075905]
[1741475472652,0.150109,86603.0,86602.0,0.01075905]
[1741475472846,0.011547,86602.0,86601.0,0.0816]
[1741475473046,0.011546,86603.0,86601.0,0.0816]
[1741475473250,0.011546,86603.0,86601.0,0.09236067]
[1741475474398,0.24236111,86605.0,86601.0,0.09236067]
[1741475475095,0.25390711,86605.0,86601.0,0.09236067]
[1741475475301,0.25390711,86605.0,86604.0,0.059546]
[1741475475302,0.10380111,86605.0,86604.0,0.059546]
[1741475475507,0.10380111,86605.0,86604.0,0.275407]
[1741475475660,0.01086634,86611.0,86604.0,0.28616282]
[1741475475874,0.01086634,86611.0,86608.0,0.1501]
[1741475476117,0.01086634,86611.0,86609.0,0.10972]
[1741475476325,0.7441796,86612.0,86609.0,0.10972]
[1741475476642,0.7441796,86612.0,86610.0,0.01074612]
[1741475478419,0.76042209,86612.0,86610.0,0.14929712]
[1741475478577,0.76042209,86612.0,86610.0,0.16084312]
[1741475479613,0.01624249,86612.0,86611.0,0.011545]
[1741475479826,0.011544,86618.0,86612.0,0.150093]
[1741475479975,0.150085,86617.0,86611.0,0.02228951]
[1741475480417,0.011545,86616.0,86611.0,0.02228951]
[1741475480614,0.011545,86616.0,86611.0,0.01074451]
[1741475480615,0.011545,86614.0,86611.0,0.01074451]
[1741475481180,0.138544,86615.0,86611.0,0.01074451]
[1741475482204,0.150089,86615.0,86611.0,0.01074451]
[1741475483956,0.011545,86614.0,86611.0,0.01074451]
[1741475484167,0.011545,86614.0,86609.0,0.121266]
[1741475484367,0.011545,86614.0,86612.0,0.01074223]
[1741475484570,0.011545,86614.0,86609.0,0.121266]
[1741475484776,0.011545,86614.0,86613.0,0.01074062]
[1741475484928,0.011545,86614.0,86609.0,0.121266]
[1741475485144,0.011545,86614.0,86609.0,0.10972]
[1741475485555,0.011545,86614.0,86610.0,0.01074547]
[1741475485753,0.138547,86613.0,86610.0,0.01074547]
[1741475486142,0.150095,86611.0,86610.0,0.01074547]
[1741475486571,0.138549,86612.0,86610.0,0.01074547]
[1741475487052,0.011545,86611.0,86610.0,0.01074547]
[1741475492010,0.150092,86614.0,86610.0,0.01074547]
[1741475492290,0.138544,86615.0,86610.0,0.02229147]
[1741475492470,0.011545,86614.0,86610.0,0.01074547]
[1741475492695,0.150092,86613.0,86610.0,0.01074547]
[1741475492877,0.10411905,86612.0,86610.0,0.01074547]
[1741475493678,0.25421405,86612.0,86610.0,0.01074547]
[1741475494474,0.25438405,86612.0,86610.0,0.01074547]
[1741475495812,0.10428905,86612.0,86610.0,0.01074547]
[1741475496356,0.00017,86612.0,86610.0,0.01074547]
[1741475496572,0.00017,86612.0,86611.0,0.13855]
[1741475496774,0.00017,86612.0,86611.0,0.01074385]
[1741475497814,0.00017,86612.0,86609.0,0.260158]
[1741475498017,0.00017,86612.0,86611.0,0.01074385]
[1741475498258,0.00017,86612.0,86609.0,0.260158]
[1741475498439,0.00017,86612.0,86611.0,0.01074385]
[1741475498591,0.00017,86612.0,86609.0,0.260158]
[1741475498961,0.00017,86612.0,86610.0,0.01074547]
[1741475500218,0.00017,86612.0,86610.0,0.14929647]
[1741475500769,0.00017,86612.0,86610.0,0.01074547]
[1741475501329,0.00017,86612.0,86611.0,0.13855]
[1741475501526,0.00017,86612.0,86610.0,0.02229147]
[1741475501727,0.00017,86612.0,86611.0,0.01074385]
[1741475504018,0.00017,86612.0,86611.0,0.02228885]
[1741475506450,0.00017,86612.0,86611.0,0.01074385]
[1741475506678,0.00017,86612.0,86610.0,0.011886]
[1741475506879,0.00017,86612.0,86611.0,0.01074385]
[1741475507987,0.00017,86612.0,86611.0,0.14929385]
[1741475514094,0.00017,86612.0,86611.0,0.16083885]
[1741475518044,0.00017,86612.0,86611.0,0.16117885]
[1741475519497,0.00017,86612.0,86611.0,0.24147885]
[1741475519700,0.10428905,86612.0,86611.0,0.28967885]
[1741475522837,0.00017,86612.0,86611.0,0.28967885]
[1741475529630,0.00117,86612.0,86611.0,0.28967885]
[1741475531493,0.01928728,86612.0,86611.0,0.28967885]
[1741475532092,0.02028728,86612.0,86611.0,0.28967885]
[1741475537155,0.00217,86612.0,86611.0,0.28289976]
[1741475538324,0.00217,86612.0,86611.0,0.29846927]
[1741475538704,0.00117,86612.0,86611.0,0.29846927]
[1741475539132,0.00217,86612.0,86611.0,0.29846927]
[1741475539508,0.00117,86612.0,86611.0,0.29846927]
[1741475539700,0.00017,86612.0,86611.0,0.29846927]
[1741475540260,0.01828689,86612.0,86611.0,0.29846927]
[1741475540667,0.01828689,86612.0,86611.0,0.30146927]
[1741475541037,0.01828689,86612.0,86611.0,0.30546927]
[1741475549025,0.01828689,86612.0,86611.0,0.30573865]
[1741475550998,0.011542,86634.0,86611.0,0.30573865]
[1741475550999,0.02723648,86634.0,86629.0,0.138521]
[1741475551142,0.02723648,86634.0,86629.0,0.248121]
[1741475551343,0.02723648,86634.0,86630.0,0.01130458]
[1741475551565,0.01569448,86634.0,86630.0,0.14982258]
[1741475551793,0.13851,86637.0,86630.0,0.14982258]
[1741475552221,0.13851,86637.0,86630.0,0.16148159]
[1741475552891,0.004,86634.0,86630.0,0.16148159]
[1741475553293,0.008,86634.0,86630.0,0.16148159]
[1741475553709,0.004,86634.0,86630.0,0.01142059]
[1741475553901,0.154057,86634.0,86630.0,0.01142059]
[1741475554326,0.015542,86634.0,86630.0,0.01142059]
[1741475554476,0.004,86634.0,86630.0,0.01142059]
[1741475554681,0.004,86634.0,86629.0,0.11444771]
[1741475554999,0.00710699,86634.0,86631.0,0.01372468]
[1741475555198,0.00710699,86634.0,86630.0,0.02526904]
[1741475555380,0.00710699,86634.0,86632.0,0.01372142]
[1741475555589,0.00710699,86634.0,86631.0,0.01372373]
[1741475555849,0.00310699,86634.0,86633.0,0.01371911]
[1741475556035,0.00310699,86634.0,86632.0,0.01372142]
[1741475556232,0.15316299,86634.0,86632.0,0.01372142]
[1741475556435,0.15316299,86634.0,86629.0,0.10290471]
[1741475556664,0.15616299,86634.0,86633.0,0.01371911]
[1741475556851,0.15916299,86634.0,86629.0,0.10290471]
[1741475557056,0.15316299,86634.0,86630.0,0.01372604]
[1741475557368,0.15316299,86634.0,86629.0,0.10290471]
[1741475557572,0.15316299,86634.0,86631.0,0.01372373]
[1741475557866,0.138516,86632.0,86629.0,0.09851471]
[1741475558877,0.138516,86632.0,86611.0,0.04854]
[1741475558878,0.150072,86625.0,86618.0,0.011544]
[1741475559037,0.011544,86622.0,86619.0,0.1096]
[1741475559239,0.226872,86625.0,86619.0,0.1096]
[1741475559648,0.226872,86625.0,86619.0,0.259681]
[1741475561611,0.0181167,86624.0,86619.0,0.259681]
[1741475562788,0.0181167,86624.0,86620.0,0.011544]
[1741475563778,0.0181167,86624.0,86620.0,0.0118836]
[1741475565221,60.0,86904.0,86620.0,0.0118836]
[1741475565424,0.138524,86627.0,86620.0,0.0118836]
[1741475565627,0.138524,86627.0,86621.0,0.01276637]
[1741475565831,0.011544,86625.0,86621.0,0.01276637]
[1741475566027,0.011543,86626.0,86621.0,0.01276637]
[1741475566268,0.138506,86639.0,86621.0,0.01276637]
[1741475566269,0.011543,86628.0,86621.0,0.16284437]
[1741475566628,0.001,86627.0,86621.0,0.16284437]
[1741475567081,0.001,86626.0,86621.0,0.16284437]
[1741475567290,0.002,86626.0,86621.0,0.16284437]
[1741475568738,0.01811643,86625.0,86621.0,0.16284437]
[1741475569300,0.01811643,86625.0,86622.0,0.011544]
[1741475569503,0.01811643,86625.0,86622.0,0.02430807]
[1741475569844,0.01811643,86625.0,86623.0,0.011544]
[1741475570003,0.01911643,86625.0,86624.0,0.011544]
[1741475570198,0.01811643,86625.0,86624.0,0.02430345]
[1741475570400,0.01911643,86625.0,86624.0,0.02430345]
[1741475571221,0.01911643,86625.0,86624.0,0.16283245]
[1741475571623,0.01911643,86625.0,86624.0,0.02430345]
[1741475571867,0.01911643,86625.0,86624.0,0.16283245]
[1741475572406,0.02011643,86625.0,86624.0,0.16283245]
[1741475574727,0.002,86625.0,86624.0,0.24113245]
[1741475575245,0.001,86625.0,86624.0,0.24113245]
[1741475575602,0.002,86625.0,86624.0,0.24113245]
[1741475575806,0.001,86625.0,86624.0,0.24113245]
[1741475576202,0.00010699,86634.0,86633.0,0.150057]
[1741475576414,0.00010699,86634.0,86633.0,0.259657]
[1741475576725,0.00010699,86634.0,86633.0,0.27239571]
[1741475577753,0.01822173,86634.0,86633.0,0.39749571]
[1741475578314,0.02222173,86634.0,86633.0,0.39749571]
[1741475579085,0.02022173,86634.0,86633.0,0.39749571]
[1741475579274,0.01822173,86634.0,86633.0,0.39749571]
[1741475579415,0.02022173,86634.0,86633.0,0.39749571]
[1741475579612,0.02222173,86634.0,86633.0,0.39749571]
[1741475579827,0.02022173,86634.0,86633.0,0.39749571]
[1741475580022,0.02122173,86634.0,86633.0,0.39749571]
[1741475580853,0.02122173,86634.0,86633.0,0.27239571]
[1741475581197,0.01922173,86634.0,86633.0,0.27239571]
[1741475581329,0.02022173,86634.0,86633.0,0.27239571]
[1741475584224,0.12434078,86634.0,86633.0,0.27239571]
[1741475588541,0.10622604,86634.0,86633.0,0.27239571]
[1741475589174,0.00210699,86634.0,86633.0,0.27239571]
[1741475591560,0.02022141,86634.0,86633.0,0.27239571]
[1741475592327,0.02022141,86634.0,86633.0,0.39859571]
[1741475599358,0.02039131,86634.0,86633.0,0.39859571]
[1741475604553,0.02039131,86634.0,86633.0,0.32019571]
[1741475615771,0.00227689,86634.0,86633.0,0.3020811]
[1741475616579,0.00227689,86634.0,86633.0,0.3136231]
[1741475619271,0.02039084,86634.0,86633.0,0.3136231]
[1741475626256,0.00227689,86634.0,86633.0,0.3136231]
[1741475629129,0.02039088,86634.0,86633.0,0.3136231]
[1741475632571,0.02039088,86634.0,86633.0,0.31348524]
[1741475634104,0.02039088,86634.0,86633.0,0.31382484]
[1741475637028,0.02039088,86634.0,86633.0,0.39052484]
[1741475644206,0.138484,86652.0,86643.0,0.011541]
[1741475644523,0.138489,86650.0,86643.0,0.150039]
[1741475644730,0.138489,86650.0,86644.0,0.01271223]
[1741475644912,0.01154,86649.0,86644.0,0.01271223]
[1741475645807,0.007,86650.0,86644.0,0.02425323]
[1741475646132,0.007,86650.0,86644.0,0.16274923]
[1741475646751,0.007,86650.0,86646.0,0.150034]
[1741475647107,0.16892789,86652.0,86646.0,0.011541]
[1741475647309,0.013,86649.0,86647.0,0.01270531]
[1741475647711,0.007,86649.0,86647.0,0.01270531]
[1741475648048,0.006,86650.0,86647.0,0.01270531]
[1741475648256,0.16892789,86652.0,86647.0,0.01270531]
[1741475648619,0.006,86649.0,86647.0,0.01370531]
[1741475650249,0.16814082,86651.0,86647.0,0.01270531]
[1741475650456,0.16814082,86651.0,86647.0,0.01470531]
[1741475650996,0.16814082,86651.0,86647.0,0.01270531]
[1741475651200,0.007,86649.0,86647.0,0.01470531]
[1741475651487,0.007,86649.0,86648.0,0.01154]
[1741475651755,0.01811262,86651.0,86648.0,0.06104]
[1741475651980,0.02511262,86651.0,86650.0,0.01154]
[1741475652464,0.02511262,86651.0,86650.0,0.02423788]
[1741475653535,0.01933969,86653.0,86652.0,0.01154]
[1741475654022,0.74309812,86657.0,86655.0,0.150019]
[1741475654236,0.74309812,86657.0,86656.0,0.10952]
[1741475654483,0.74309812,86657.0,86656.0,0.12220348]
[1741475654721,0.74309812,86657.0,86656.0,0.11820348]
[1741475654951,0.74309812,86657.0,86656.0,0.11620348]
[1741475655426,0.74809812,86657.0,86656.0,0.11620348]
[1741475656650,0.76420955,86657.0,86656.0,0.09809206]
[1741475657114,0.76420955,86657.0,86656.0,0.10963106]
[1741475657317,0.78814138,86657.0,86656.0,0.10963106]
[1741475664132,0.04514138,86657.0,86656.0,0.10963106]
[1741475670961,0.04514138,86657.0,86656.0,0.10997066]
[1741475671197,0.04531118,86657.0,86656.0,0.10997066]
[1741475676769,0.311538,86663.0,86656.0,0.10997066]
[1741475676975,0.018111,86657.0,86656.0,0.10997066]
[1741475677531,0.011539,86661.0,86656.0,0.10997066]
[1741475677735,0.00017,86665.0,86662.0,0.138468]
[1741475677936,0.00017,86665.0,86663.0,0.011538]
[1741475678091,0.00017,86665.0,86664.0,0.150003]
[1741475678437,0.02361676,86665.0,86664.0,0.01266403]
[1741475678810,0.00017,86665.0,86664.0,0.01266403]
[1741475679006,0.00017,86665.0,86664.0,0.01166403]
[1741475679779,0.00117,86665.0,86664.0,0.01166403]
[1741475679981,0.01927897,86665.0,86664.0,0.01166403]
[1741475680632,0.04380962,86665.0,86664.0,0.01166403]
[1741475687647,0.04380962,86665.0,86662.0,0.00509381]
[1741475687860,0.02570065,86665.0,86663.0,0.01176179]
[1741475688566,0.02470065,86665.0,86663.0,0.01176179]
[1741475689086,0.011538,86664.0,86663.0,0.01176179]
[1741475689488,0.138467,86663.0,86655.0,0.150019]
[1741475689694,0.150005,86663.0,86655.0,0.150019]
[1741475689968,0.011539,86662.0,86655.0,0.150019]
[1741475690293,0.02470065,86665.0,86659.0,0.138473]
[1741475690498,0.02470065,86665.0,86660.0,0.011539]
[1741475690743,0.01810913,86664.0,86660.0,0.011539]
[1741475692048,0.02964713,86664.0,86659.0,0.138473]
[1741475692660,0.02964713,86664.0,86658.0,0.011539]
[1741475693064,0.16811413,86664.0,86658.0,0.011539]
[1741475693298,0.02964713,86664.0,86659.0,0.138473]
[1741475694047,0.02964713,86664.0,86659.0,0.150012]
[1741475695027,0.01810913,86664.0,86661.0,0.011539]
[1741475695350,0.01810913,86664.0,86662.0,0.0117641]
[1741475695733,0.01810913,86664.0,86660.0,0.0003398]
[1741475695908,0.01810913,86664.0,86663.0,0.01176179]
[1741475696087,0.01810913,86664.0,86660.0,0.1388098]
[1741475696288,0.01810913,86664.0,86663.0,0.01176179]
[1741475696508,0.01810913,86664.0,86660.0,0.1388098]
[1741475696669,0.01810913,86664.0,86663.0,0.01176179]
[1741475696875,0.01810913,86664.0,86660.0,0.1503488]
[1741475697071,0.01810913,86664.0,86663.0,0.01176179]
[1741475697336,0.01810913,86664.0,86660.0,0.1503488]
[1741475697474,0.01810913,86664.0,86663.0,0.01176179]
[1741475697697,0.01810913,86664.0,86660.0,0.1503488]
[1741475697910,0.01810913,86664.0,86663.0,0.01176179]
[1741475698167,0.01810913,86664.0,86660.0,0.1503488]
[1741475698370,0.01810913,86664.0,86663.0,0.01176179]
[1741475698532,0.01810913,86664.0,86660.0,0.1503488]
[1741475698735,0.01810913,86664.0,86663.0,0.01176179]
[1741475698929,0.01810913,86664.0,86660.0,0.1503488]
[1741475699142,0.01810913,86664.0,86663.0,0.01176179]
[1741475699341,0.01810913,86664.0,86660.0,0.1503488]
[1741475699543,0.01810913,86664.0,86663.0,0.01176179]
[1741475700066,0.01810913,86664.0,86660.0,0.0003398]
[1741475700264,0.138467,86663.0,86661.0,0.0117664]
[1741475701733,0.150005,86663.0,86661.0,0.0117664]
[1741475702769,0.01810913,86664.0,86661.0,0.0117664]
[1741475703511,0.150005,86663.0,86661.0,0.0117664]
[1741475703825,0.011539,86662.0,86661.0,0.0117664]
[1741475705210,0.150009,86661.0,86660.0,0.0003398]
[1741475705388,0.150009,86661.0,86656.0,0.06797832]
[1741475705618,0.138475,86658.0,86656.0,0.0003396]
[1741475705919,0.138475,86658.0,86657.0,0.01177573]
[1741475708092,0.150014,86658.0,86657.0,0.01177573]
[1741475708506,0.011539,86657.0,86656.0,0.0003396]
[1741475708928,0.011539,86657.0,86656.0,0.01211764]
[1741475709140,0.011539,86657.0,86656.0,0.0003396]
[1741475709280,0.011539,86657.0,86656.0,0.01211764]
[1741475709516,0.011539,86657.0,86656.0,0.0003396]
[1741475709722,0.434539,86657.0,86656.0,0.01211764]
[1741475710080,0.434539,86657.0,86656.0,0.0003396]
[1741475710319,0.434539,86657.0,86629.0,0.0003398]
[1741475710320,0.150055,86634.0,86629.0,0.0003398]
[1741475710450,0.150055,86634.0,86633.0,0.00043772]
[1741475711501,0.150055,86634.0,86633.0,0.00643772]
[1741475711846,0.011542,86634.0,86633.0,0.00643772]
[1741475712053,0.150055,86634.0,86633.0,0.01737629]
[1741475712300,0.150055,86634.0,86633.0,0.02237629]
[1741475713677,0.150055,86634.0,86633.0,0.01143772]
[1741475714191,0.150055,86634.0,86633.0,0.00543772]
[1741475714374,0.011542,86634.0,86633.0,0.00543772]
[1741475714569,0.011542,86637.0,86633.0,0.00943772]
[1741475714780,0.011542,86639.0,86634.0,0.150055]
[1741475715002,0.011542,86639.0,86635.0,0.01093509]
[1741475716063,0.13851,86636.0,86635.0,0.01093509]
[1741475716225,0.13851,86636.0,86633.0,0.00343772]
[1741475716410,0.011542,86637.0,86633.0,0.00043772]
[1741475716619,0.011542,86637.0,86634.0,0.0109374]
[1741475716866,0.011542,86637.0,86633.0,0.00043772]
[1741475717077,0.011542,86637.0,86635.0,0.01093509]
[1741475717298,0.011542,86637.0,86634.0,0.0109374]
[1741475717480,0.011542,86639.0,86633.0,0.00043772]
[1741475717692,0.011542,86638.0,86633.0,0.00043772]
[1741475717991,0.011542,86638.0,86634.0,0.0109374]
[1741475718350,0.011542,86638.0,86633.0,0.00043772]
[1741475718554,0.011542,86638.0,86635.0,0.01093509]
[1741475718778,0.011542,86638.0,86634.0,0.0109374]
[1741475718975,0.011542,86638.0,86633.0,0.00043772]
[1741475719195,0.150049,86638.0,86635.0,0.01093509]
[1741475719523,0.151049,86638.0,86633.0,0.00043772]
[1741475719930,0.10386257,86636.0,86634.0,0.0109374]
[1741475720282,0.10386257,86636.0,86634.0,0.0003398]
[1741475720479,0.10386257,86636.0,86635.0,0.01093509]
[1741475720685,0.10386257,86636.0,86634.0,0.0003398]
[1741475720915,0.10386257,86636.0,86635.0,0.01093509]
[1741475722613,0.10386257,86636.0,86634.0,0.0003398]
[1741475722819,0.10386257,86636.0,86635.0,0.01093509]
[1741475723076,0.10386257,86636.0,86634.0,0.0003398]
[1741475723282,0.10386257,86636.0,86635.0,0.01093509]
[1741475724562,0.10386257,86636.0,86635.0,0.02247709]
[1741475724745,0.138501,86642.0,86635.0,0.02247709]
[1741475724746,0.10386257,86639.0,86636.0,0.13851]
[1741475725152,0.10386257,86639.0,86637.0,0.01093134]
[1741475725589,0.10386257,86639.0,86636.0,0.150052]
[1741475725917,0.10486257,86639.0,86637.0,0.01093134]
[1741475726366,0.10386257,86639.0,86636.0,0.150052]
[1741475726509,0.10386257,86639.0,86638.0,0.16097803]
[1741475726721,0.10386257,86639.0,86638.0,0.150049]
[1741475726967,0.06621845,86648.0,86641.0,0.150042]
[1741475727152,0.150037,86645.0,86639.0,0.138505]
[1741475727391,0.150037,86645.0,86642.0,0.01091981]
[1741475727532,0.011541,86644.0,86639.0,0.138505]
[1741475727742,0.138492,86647.0,86641.0,0.150043]
[1741475727964,0.150033,86647.0,86642.0,0.011541]
[1741475728146,0.011541,86646.0,86642.0,0.01091939]
[1741475728529,0.10377273,86643.0,86641.0,0.150043]
[1741475729134,0.10377273,86643.0,86639.0,0.137505]
[1741475729537,0.84777273,86643.0,86639.0,0.137505]
[1741475730088,0.84777273,86643.0,86641.0,0.138502]
[1741475730324,0.84777273,86643.0,86640.0,0.011542]
[1741475731368,0.84777273,86643.0,86642.0,0.090041]
[1741475731541,0.84777273,86643.0,86642.0,0.136641]
[1741475732475,0.10377273,86643.0,86642.0,0.136641]
[1741475732775,0.01154,86654.0,86642.0,0.137641]
[1741475732943,0.01154,86654.0,86647.0,0.150033]
[1741475733143,0.01154,86654.0,86648.0,0.10944]
[1741475733978,0.150023,86653.0,86648.0,0.10944]
[1741475734545,0.0001699,86656.0,86651.0,0.138485]
[1741475734721,0.001,86654.0,86653.0,0.01154]
[1741475734883,0.002,86654.0,86651.0,0.138485]
[1741475735085,0.001,86654.0,86651.0,0.150025]
[1741475735463,0.002,86653.0,86651.0,0.150025]
[1741475735889,0.001,86653.0,86652.0,0.01154]
[1741475736567,0.0001699,86656.0,86653.0,0.01154]
[1741475736772,0.0001699,86656.0,86652.0,0.02243498]
[1741475736977,0.0001699,86656.0,86654.0,0.01089037]
[1741475737178,0.0001699,86656.0,86653.0,0.01089268]
[1741475737382,0.0001699,86656.0,86655.0,0.01088806]
[1741475737610,0.0001699,86656.0,86654.0,0.01089037]
[1741475737817,0.0001699,86656.0,86655.0,0.01088806]
[1741475737996,0.0001699,86656.0,86655.0,0.00888806]
[1741475738174,0.0001699,86656.0,86653.0,0.01154]
[1741475738724,0.0001699,86656.0,86654.0,0.01174751]
[1741475738928,0.0001699,86656.0,86655.0,0.001]
[1741475739107,0.0001699,86656.0,86654.0,0.01174751]
[1741475739308,0.0001699,86656.0,86653.0,0.01154]
[1741475739515,0.0001699,86656.0,86655.0,0.01074521]
[1741475739669,0.0001699,86656.0,86654.0,0.01074751]
[1741475740211,0.0001699,86656.0,86655.0,0.001]
[1741475741739,0.0001699,86656.0,86654.0,0.001]
[1741475741953,0.0001699,86656.0,86652.0,0.01154]
[1741475742186,0.0001699,86656.0,86655.0,0.01274521]
[1741475742343,0.0001699,86656.0,86655.0,0.002]
[1741475742541,0.0001699,86656.0,86654.0,0.001]
[1741475742952,0.0001699,86656.0,86655.0,0.01074521]
[1741475743324,0.0001699,86656.0,86654.0,0.002]
[1741475743549,0.0001699,86656.0,86655.0,0.001]
[1741475743730,0.0001699,86656.0,86655.0,0.01174521]
[1741475744089,0.0117089,86656.0,86655.0,0.001]
[1741475744453,0.0117089,86656.0,86655.0,0.002]
[1741475744885,0.0117089,86656.0,86655.0,0.001]
[1741475745894,0.0117089,86656.0,86655.0,0.002]
[1741475747143,0.0001699,86656.0,86655.0,0.002]
[1741475748770,0.0117089,86656.0,86655.0,0.002]
[1741475749182,0.0001699,86656.0,86655.0,0.002]
[1741475749750,0.0117089,86656.0,86655.0,0.002]
[1741475753143,0.0868089,86656.0,86655.0,0.002]
[1741475753358,0.0868089,86656.0,86639.0,0.0003398]
[1741475753359,0.150046,86640.0,86639.0,0.0003398]
[1741475754709,0.893046,86640.0,86639.0,0.0003398]
[1741475755937,0.893046,86640.0,86639.0,0.0053398]
[1741475764625,0.893046,86640.0,86639.0,0.0023398]
[1741475764801,0.893046,86640.0,86639.0,0.0003398]
[1741475765006,0.894046,86640.0,86639.0,0.0003398]
[1741475765203,0.895046,86640.0,86639.0,0.0003398]
[1741475765910,0.66086868,86640.0,86639.0,0.0003398]
[1741475766454,0.79937268,86640.0,86639.0,0.0003398]
[1741475768318,1.09937268,86640.0,86639.0,0.0003398]
[1741475768521,1.2693579,86640.0,86639.0,0.0003398]
[1741475768968,0.450054,86635.0,86634.0,0.0003398]
[1741475770422,0.450054,86635.0,86634.0,0.0013398]
[1741475772304,0.3,86634.0,86633.0,0.00043772]
[1741475772506,0.011544,86621.0,86611.0,0.00034]
[1741475774098,0.590944,86621.0,86611.0,0.00034]
[1741475774298,0.150093,86612.0,86611.0,0.00034]
[1741475774428,1.209673,86612.0,86611.0,0.00034]
[1741475774664,0.561173,86612.0,86611.0,0.00034]
[1741475775716,0.562173,86612.0,86611.0,0.00034]
[1741475776145,0.762173,86612.0,86611.0,0.00034]
[1741475776275,1.57635822,86612.0,86611.0,0.00034]
[1741475776478,1.486773,86612.0,86611.0,0.00034]
[1741475776678,1.411673,86612.0,86611.0,0.00034]
[1741475781890,1.39117822,86612.0,86611.0,0.00034]
[1741475782118,1.50249822,86612.0,86611.0,0.00034]
[1741475784434,1.50149822,86612.0,86611.0,0.00034]
[1741475784666,1.50049822,86612.0,86611.0,0.00034]
[1741475784879,1.50249822,86612.0,86611.0,0.00134]
[1741475785087,1.50149822,86612.0,86611.0,0.00034]
[1741475785376,1.50249822,86612.0,86611.0,0.00134]
[1741475786069,1.50149822,86612.0,86611.0,0.00134]
[1741475786276,1.50449822,86612.0,86611.0,0.00234]
[1741475787078,0.94203907,86612.0,86611.0,0.00234]
[1741475787283,1.51903907,86612.0,86611.0,0.00234]
[1741475789181,1.31903907,86612.0,86611.0,0.00234]
[1741475789391,1.51903907,86612.0,86611.0,0.00234]
[1741475790186,1.51803907,86612.0,86611.0,0.00134]
[1741475790520,1.52003907,86612.0,86611.0,0.00234]
[1741475791468,1.51703907,86612.0,86611.0,0.00134]
[1741475791788,1.51703907,86612.0,86611.0,0.00234]
[1741475791789,1.52003907,86612.0,86611.0,0.00234]
[1741475792185,1.62361613,86612.0,86611.0,0.00234]
[1741475792726,1.62361613,86612.0,86611.0,0.00244699]
[1741475796638,1.52003907,86612.0,86611.0,0.00244699]
[1741475797704,1.52003907,86612.0,86611.0,0.00115782]
[1741475801038,0.87153907,86612.0,86611.0,0.00115782]
[1741475803677,0.2,86597.0,86596.0,0.0003398]
[1741475803876,1.409699,86597.0,86596.0,0.0003398]
[1741475804685,1.43578516,86597.0,86596.0,0.0003398]
[1741475805109,1.43878516,86597.0,86596.0,0.0003398]
[1741475805318,1.44078516,86597.0,86596.0,0.0003398]
[1741475806489,1.58914516,86597.0,86596.0,0.0003398]
[1741475807121,1.71114516,86597.0,86596.0,0.0003398]
[1741475807325,1.58914516,86597.0,86596.0,0.0003398]
[1741475809111,1.12794616,86597.0,86596.0,0.0488398]
[1741475809312,1.27806516,86597.0,86596.0,0.0488398]
[1741475809625,1.27806516,86597.0,86596.0,0.04865445]
[1741475811222,1.12970516,86597.0,86596.0,0.04865445]
[1741475812315,1.33109038,86597.0,86596.0,0.00015445]
[1741475812492,1.24050516,86597.0,86596.0,0.00015445]
[1741475813070,1.34563123,86597.0,86596.0,0.00015445]
[1741475814815,1.54563123,86597.0,86596.0,0.00015445]
[1741475815229,1.34563123,86597.0,86596.0,0.00015445]
[1741475816042,1.24050516,86597.0,86596.0,0.00015445]
[1741475819870,1.25504601,86597.0,86596.0,0.00015445]
[1741475820269,1.34563123,86597.0,86596.0,0.00015445]
[1741475820472,1.34563123,86597.0,86582.0,0.0485]
[1741475820473,0.150144,86583.0,86582.0,0.0485]
[1741475820930,0.150144,86583.0,86582.0,0.05969999]